bitfinex/quotes_ETHUSD_20250430
["timestamp","ask_amount","ask_price","bid_price","bid_amount"]
[1746003794038,1.26005016,1798.1,1798.0,5.193]
[1746003795240,0.7416,1798.1,1798.0,5.193]
[1746003796138,0.7416,1798.1,1798.0,5.7075]
[1746003797848,0.7416,1798.1,1798.0,12.98592784]
[1746003798037,0.7416,1798.1,1798.0,15.98592784]
[1746003799462,0.7416,1798.1,1798.0,12.98592784]
[1746003803269,0.7416,1798.1,1798.0,13.41289925]
[1746003803870,0.7416,1798.1,1798.0,7.42419258]
[1746003804153,0.7416,1798.1,1798.0,11.26923526]
[1746003807574,0.7416,1798.1,1798.0,16.40818565]
[1746003821992,0.7416,1798.1,1798.0,34.76518565]
[1746003825409,0.7416,1798.1,1798.0,34.76518565]
[1746003839983,1e-08,1798.1,1798.0,34.76518565]
[1746003840409,1e-08,1798.1,1798.0,40.93518565]
[1746003841785,0.7773,1798.6,1798.0,40.93518565]
[1746003841786,0.7773,1798.6,1798.5,7.82688162]
[1746003841982,0.7773,1798.6,1798.5,12.46288162]
[1746003842415,0.7773,1798.6,1798.5,5.186]
[1746003843461,0.7773,1798.6,1798.5,4.636]
[1746003843725,0.51969758,1798.6,1798.5,4.636]
[1746003843929,1.29719758,1798.6,1798.5,4.636]
[1746003844127,1.29719758,1798.6,1798.5,5.186]
[1746003844286,0.7775,1798.6,1798.2,7.27761819]
[1746003844489,0.7775,1798.6,1798.5,4.635]
[1746003845727,1.29715191,1798.6,1798.5,4.635]
[1746003846027,0.7775,1798.6,1798.5,4.635]
[1746003847122,1.29713325,1798.6,1798.5,4.635]
[1746003847327,0.7775,1798.6,1798.5,4.636]
[1746003847518,1.08922409,1798.6,1798.5,3.8027]
[1746003847818,4.08922409,1798.6,1798.5,3.8027]
[1746003848226,4.60870018,1798.6,1798.5,3.8027]
[1746003848893,1.60870018,1798.6,1798.5,3.8027]
[1746003852150,2.29086961,1798.6,1798.5,3.8027]
[1746003852846,2.29027875,1798.6,1798.5,3.8027]
[1746003856258,0.7643,1798.5,1798.1,4.636]
[1746003856448,0.7643,1798.3,1798.1,4.636]
[1746003857146,1.59720932,1798.2,1798.1,4.636]
[1746003860362,6.99607133,1798.2,1798.1,4.636]
[1746003861375,5.27937875,1798.2,1798.1,4.636]
[1746003864229,6.99607133,1798.2,1798.1,4.636]
[1746003866960,5.27937875,1798.2,1798.1,4.636]
[1746003869888,5.27937875,1798.2,1798.1,4.636]
[1746003870384,2.27937875,1798.2,1798.1,4.636]
[1746003871058,1.75990266,1798.2,1798.1,4.636]
[1746003871393,1.44876943,1798.2,1798.1,4.636]
[1746003872153,1.96519301,1798.2,1798.1,4.636]
[1746003872568,6.68188559,1798.2,1798.1,4.636]
[1746003873058,6.99191601,1798.2,1798.1,4.636]
[1746003881998,5.27522343,1798.2,1798.1,4.636]
[1746003889326,1.50862343,1798.2,1798.1,4.636]
[1746003893797,2.33552343,1798.2,1798.1,4.636]
[1746003894639,5.33552343,1798.2,1798.1,4.636]
[1746003896031,5.74405498,1798.2,1798.1,4.636]
[1746003896538,5.33552343,1798.2,1798.1,4.636]
[1746003897040,0.826454,1798.2,1798.1,7.65469258]
[1746003897227,0.826454,1798.2,1798.1,5.938]
[1746003897739,0.31003042,1798.2,1798.1,5.938]
[1746003897915,1.71669258,1798.6,1798.1,5.938]
[1746003898234,0.5189998,1798.5,1798.1,5.938]
[1746003898637,0.5189998,1798.5,1798.1,5.388]
[1746003898947,0.3113491,1798.4,1798.1,5.388]
[1746003899129,0.8303489,1798.4,1798.1,5.388]
[1746003899517,0.5189998,1798.3,1798.1,5.388]
[1746003900015,0.8023,1798.5,1798.1,5.388]
[1746003900419,0.51885051,1798.4,1798.1,5.388]
[1746003900639,0.31131393,1798.3,1798.1,5.388]
[1746003901841,0.8023,1798.5,1798.1,5.388]
[1746003902018,0.68216943,1798.4,1798.1,5.388]
[1746003906145,0.68216943,1798.4,1798.2,0.55]
[1746003907037,0.68216943,1798.7,1798.3,0.7533]
[1746003907237,0.68216943,1798.7,1798.3,3.95637183]
[1746003907437,0.68216943,1798.7,1798.3,0.7533]
[1746003907649,0.68216943,1799.0,1798.4,1.3033]
[1746003907943,0.82973213,1798.9,1798.5,4.632]
[1746003908306,1.35128776,1798.8,1798.5,4.632]
[1746003908711,0.8327,1798.8,1798.5,4.632]
[1746003909106,0.51840768,1798.7,1798.5,4.632]
[1746003909709,0.8327,1798.8,1798.5,4.632]
[1746003911245,0.51816705,1798.7,1798.5,4.632]
[1746003911554,0.51816705,1798.7,1798.6,1.3675]
[1746003911956,0.68216943,1799.0,1798.6,1.3675]
[1746003913049,0.67333834,1799.0,1798.6,1.3675]
[1746003914060,0.67333834,1799.0,1798.7,4.632]
[1746003914732,0.31072137,1798.9,1798.7,4.632]
[1746003915728,0.67333834,1799.0,1798.7,4.632]
[1746003918028,0.31073364,1798.9,1798.7,4.632]
[1746003918240,0.31073364,1798.9,1798.8,4.632]
[1746003918974,0.31073364,1798.9,1798.6,0.8175]
[1746003919268,0.31073364,1798.9,1798.7,4.632]
[1746003919465,0.67333834,1799.0,1798.7,4.632]
[1746003921671,0.31078013,1798.9,1798.7,4.632]
[1746003922270,0.67333834,1799.0,1798.7,4.632]
[1746003923939,0.31078752,1798.9,1798.7,4.632]
[1746003924895,0.67333834,1799.0,1798.6,0.8175]
[1746003924896,2.39003092,1799.0,1798.6,0.8175]
[1746003925100,0.7715,1798.9,1798.8,4.631]
[1746003926866,1.08267735,1798.9,1798.8,4.631]
[1746003928567,1.75601569,1798.9,1798.8,4.631]
[1746003935114,3.7582,1798.8,1798.7,4.631]
[1746003935279,5.02786993,1798.8,1798.7,4.631]
[1746003935479,2.02786993,1798.8,1798.7,4.631]
[1746003935820,0.31117735,1798.8,1798.7,4.631]
[1746003940280,0.98451569,1798.8,1798.7,4.631]
[1746003940722,2.70120827,1798.8,1798.7,4.631]
[1746003941024,0.98451569,1798.8,1798.7,4.631]
[1746003942325,0.98451569,1798.8,1798.7,5.4481]
[1746003945987,0.67333834,1798.8,1798.7,5.4481]
[1746003959150,0.67333834,1798.8,1798.7,5.9981]
[1746003959825,0.67333834,1798.8,1798.7,11.5576708]
[1746003960146,0.67333834,1799.4,1798.9,5.5588477]
[1746003960303,0.67333834,1799.4,1799.1,0.55]
[1746003960507,0.67333834,1799.4,1799.2,4.629]
[1746003960741,0.31151563,1799.3,1799.2,4.629]
[1746003962762,0.67333834,1799.4,1799.2,4.629]
[1746003966036,0.67333834,1799.4,1799.2,5.4227]
[1746003976784,0.67333834,1799.4,1799.2,5.4227]
[1746003976989,0.67333834,1799.4,1799.2,4.629]
[1746003981799,0.8191,1799.3,1799.1,18.352]
[1746003981973,2.53579258,1799.3,1799.2,4.628]
[1746003982178,2.8510876,1799.3,1799.2,4.628]
[1746003982381,5.8510876,1799.3,1799.2,4.628]
[1746003983798,1.13439502,1799.3,1799.2,4.628]
[1746003989175,0.31149502,1799.3,1799.2,4.628]
[1746003997616,1.09009502,1799.3,1799.1,4.627]
[1746003998005,0.31149502,1799.2,1799.1,4.627]
[1746003998918,0.31149502,1799.2,1799.1,5.3995]
[1746003999420,0.67333834,1799.4,1799.1,5.3995]
[1746003999915,0.67333834,1799.4,1799.2,4.627]
[1746004000139,0.31200879,1799.3,1799.2,4.627]
[1746004014133,1.12930879,1799.3,1799.2,4.627]
[1746004018869,0.31200879,1799.3,1799.2,4.626]
[1746004025678,0.67333834,1799.4,1799.2,4.626]
[1746004025976,0.31180335,1799.3,1799.2,4.626]
[1746004039913,0.67333834,1799.4,1799.2,4.626]
[1746004040113,0.3120553,1799.3,1799.2,4.626]
[1746004041988,0.3120553,1799.3,1799.2,5.176]
[1746004042321,0.3120553,1799.3,1799.2,5.9807]
[1746004042691,0.3120553,1799.3,1799.2,5.176]
[1746004044124,0.3120553,1799.3,1799.2,4.626]
[1746004072743,0.3120553,1799.3,1799.2,5.176]
[1746004077167,0.3120553,1799.3,1799.2,4.626]
[1746004090656,0.3120553,1799.3,1799.2,5.176]
[1746004090847,0.3120553,1799.3,1799.2,5.9645]
[1746004091182,0.3120553,1799.3,1799.2,12.7464925]
[1746004091374,1.48433834,1799.9,1799.4,1.3385]
[1746004091569,2.70830506,1799.9,1799.4,1.3385]
[1746004091889,1.22396672,1799.8,1799.4,1.3385]
[1746004092264,0.31203335,1799.7,1799.4,1.3385]
[1746004093291,0.31203335,1799.6,1799.4,1.3385]
[1746004093939,0.31203335,1799.6,1799.4,6.89588405]
[1746004094260,1.48433834,1799.9,1799.4,6.89588405]
[1746004094484,1.48433834,1799.9,1799.5,0.5]
[1746004094680,1.48433834,1799.9,1799.6,4.622]
[1746004095478,0.31187333,1799.8,1799.6,4.622]
[1746004096151,0.31187333,1799.7,1799.6,4.622]
[1746004097895,1.09827333,1799.7,1799.6,4.622]
[1746004099997,2.77800246,1799.7,1799.6,4.622]
[1746004101602,3.4513408,1799.7,1799.6,4.622]
[1746004101769,6.4513408,1799.7,1799.6,4.622]
[1746004105598,3.4513408,1799.7,1799.6,4.622]
[1746004110378,1.73831167,1799.7,1799.6,4.622]
[1746004110577,0.98521167,1799.7,1799.6,4.622]
[1746004115488,3.5235408,1799.7,1799.6,4.622]
[1746004119315,1.81051167,1799.7,1799.6,4.622]
[1746004121997,0.98521167,1799.7,1799.6,4.622]
[1746004129231,0.67333834,1799.7,1799.6,4.622]
[1746004129631,0.98527121,1799.7,1799.6,4.622]
[1746004133432,3.02157369,1799.7,1799.6,4.622]
[1746004135643,1.79797121,1799.7,1799.6,4.622]
[1746004139445,1.79797121,1799.7,1799.6,4.622]
[1746004141541,0.98527121,1799.7,1799.6,4.622]
[1746004142710,1.78347121,1799.7,1799.6,4.622]
[1746004144737,2.30345696,1799.7,1799.6,4.622]
[1746004144940,1.50525696,1799.7,1799.6,4.622]
[1746004146419,0.98527121,1799.7,1799.6,4.622]
[1746004146617,0.67333834,1799.7,1799.6,4.622]
[1746004147655,0.98537954,1799.7,1799.6,4.622]
[1746004147970,1.50544832,1799.7,1799.6,4.622]
[1746004154869,0.98537954,1799.7,1799.6,4.622]
[1746004155069,0.67333834,1799.7,1799.6,4.622]
[1746004155372,1.42433834,1799.7,1799.6,4.622]
[1746004155679,3.13775697,1799.7,1799.6,4.622]
[1746004156268,3.9707413,1799.7,1799.6,4.622]
[1746004160676,2.25732267,1799.7,1799.6,4.622]
[1746004160844,1.73670707,1799.7,1799.6,4.622]
[1746004161169,1.42433834,1799.7,1799.6,4.622]
[1746004161741,2.2575977,1799.7,1799.6,4.622]
[1746004162771,6.22001633,1799.7,1799.2,18.348]
[1746004162983,1.3371871,1799.6,1799.3,4.615]
[1746004163143,0.8164,1799.4,1799.2,4.615]
[1746004163342,0.67333834,1799.3,1799.2,4.615]
[1746004163542,1.19412544,1799.3,1799.2,4.615]
[1746004163785,1.5065977,1799.3,1799.2,4.615]
[1746004168165,2.3008977,1799.3,1799.2,4.615]
[1746004173998,1.5065977,1799.3,1799.2,4.615]
[1746004180183,2.2754977,1799.3,1799.2,4.615]
[1746004183603,1.5065977,1799.3,1799.2,4.615]
[1746004186709,1.5065977,1799.3,1799.2,4.615]
[1746004187511,1.5065977,1799.3,1799.2,5.4194]
[1746004198143,0.83325936,1799.3,1799.2,5.4194]
[1746004199083,0.31247226,1799.3,1799.2,5.4194]
[1746004201347,0.67333834,1799.5,1799.2,5.4194]
[1746004202241,0.312324,1799.4,1799.2,5.4194]
[1746004202721,0.312324,1799.3,1799.2,5.4194]
[1746004203652,0.312324,1799.3,1799.2,4.615]
[1746004205332,1.46163834,1799.5,1799.2,4.615]
[1746004205723,0.31225136,1799.4,1799.2,4.615]
[1746004206758,1.46163834,1799.5,1799.2,4.615]
[1746004206759,0.31225136,1799.3,1799.2,4.615]
[1746004210866,0.31225136,1799.3,1799.2,5.115]
[1746004213459,0.31225136,1799.3,1799.2,0.36713888]
[1746004213668,3.7512,1798.5,1798.1,6.27655998]
[1746004213830,3.0,1798.4,1798.1,5.98632081]
[1746004214031,2.50481863,1798.2,1798.1,5.98632081]
[1746004214255,11.19225806,1798.2,1798.1,5.98632081]
[1746004214442,5.93227631,1798.2,1798.1,5.98632081]
[1746004214653,5.93227631,1798.2,1798.0,5.98632081]
[1746004215164,2.81706999,1798.2,1798.0,10.59732081]
[1746004215542,0.31225136,1798.1,1798.0,10.59732081]
[1746004216225,0.83010016,1798.1,1798.0,10.59732081]
[1746004216443,1.25622751,1798.1,1798.0,10.59732081]
[1746004218670,1.92956585,1798.1,1798.0,10.59732081]
[1746004219859,1.41171705,1798.1,1798.0,10.59732081]
[1746004220173,1.09946569,1798.1,1798.0,10.59732081]
[1746004220362,1.09946569,1798.1,1798.0,4.611]
[1746004221348,0.67333834,1798.1,1798.0,4.611]
[1746004223044,0.67333834,1798.1,1798.0,5.161]
[1746004223234,0.67333834,1798.1,1798.0,5.9511]
[1746004223441,0.4199666,1798.7,1798.2,0.55]
[1746004223642,3.67333834,1798.7,1798.2,0.55]
[1746004223864,4.0961434,1798.7,1798.2,0.55]
[1746004225340,3.67333834,1798.7,1798.3,0.7901]
[1746004225545,3.67333834,1798.7,1798.4,4.612]
[1746004225546,0.67333834,1798.7,1798.4,4.612]
[1746004231669,0.67333834,1798.7,1798.5,0.20806534]
[1746004232383,0.67333834,1798.7,1798.6,0.8077]
[1746004232586,0.67333834,1798.9,1798.6,0.8077]
[1746004235192,0.67333834,1798.9,1798.7,0.00723883]
[1746004235355,0.67333834,1798.9,1798.8,4.612]
[1746004235556,0.67333834,1798.9,1798.8,4.61917701]
[1746004241397,0.67333834,1798.9,1798.8,4.7972079]
[1746004242695,1.47733834,1798.9,1798.8,4.7972079]
[1746004242995,0.67333834,1798.9,1798.8,4.7972079]
[1746004243160,0.98397965,1798.9,1798.8,4.7972079]
[1746004243871,1.50189025,1798.9,1798.8,4.7972079]
[1746004244566,0.67333834,1798.9,1798.8,4.7972079]
[1746004245504,1.09592172,1799.3,1798.8,5.6196079]
[1746004245701,0.67333834,1799.3,1798.8,5.6196079]
[1746004246199,0.82873774,1799.2,1798.8,5.6196079]
[1746004247062,0.51796109,1799.1,1798.8,5.6196079]
[1746004247482,0.31077665,1799.0,1798.8,5.6196079]
[1746004248476,0.31077665,1799.2,1798.8,5.6196079]
[1746004248677,0.5184048,1799.1,1798.8,5.6196079]
[1746004249288,0.31077665,1799.2,1798.8,5.6196079]
[1746004249611,0.31077665,1799.1,1798.8,5.6196079]
[1746004249905,0.5186323,1799.0,1798.8,5.6196079]
[1746004250094,0.5186323,1799.0,1798.8,5.0196079]
[1746004250635,0.8161,1799.0,1798.8,4.1972079]
[1746004250919,1.48943834,1799.0,1798.9,4.609]
[1746004251224,1.80021499,1799.0,1798.9,4.79208766]
[1746004251664,2.3194468,1799.0,1798.9,4.79208766]
[1746004252537,7.03286543,1799.0,1798.9,0.18308766]
[1746004252720,5.38893174,1799.0,1798.9,0.18308766]
[1746004252883,5.3194468,1799.0,1798.9,0.18308766]
[1746004256986,5.3194468,1799.0,1798.8,4.609]
[1746004257187,5.3194468,1799.0,1798.9,0.16471477]
[1746004257403,5.3194468,1799.0,1798.8,4.609]
[1746004257602,0.31077665,1798.9,1798.8,4.609]
[1746004257931,1.5033468,1798.9,1798.8,4.609]
[1746004260626,1.5033468,1798.9,1798.8,4.61617701]
[1746004261171,3.21676543,1798.9,1798.8,4.61617701]
[1746004261563,12.65871217,1798.9,1798.8,0.00717701]
[1746004261727,12.58921812,1798.9,1798.8,0.00717701]
[1746004261929,0.8135,1798.7,1798.6,4.61]
[1746004262220,2.52691863,1798.7,1798.6,4.61]
[1746004262428,3.25034715,1798.7,1798.6,4.61]
[1746004262636,11.80991795,1798.7,1798.6,4.61]
[1746004262841,12.32354976,1798.7,1798.6,4.61]
[1746004263886,5.56036217,1798.5,1798.2,18.356]
[1746004264034,5.56036217,1798.5,1798.2,22.966]
[1746004264035,5.52351863,1798.3,1798.2,22.966]
[1746004264372,6.04275044,1798.3,1798.2,22.966]
[1746004264680,6.04275044,1798.3,1798.2,23.10287387]
[1746004264681,6.71608878,1798.3,1798.2,23.10287387]
[1746004265131,7.02686543,1798.3,1798.2,23.10287387]
[1746004266362,7.02686543,1798.3,1798.2,4.74687387]
[1746004267087,7.02686543,1798.3,1798.2,4.61]
[1746004267291,7.02686543,1798.3,1798.2,4.74776902]
[1746004267489,7.02686543,1798.3,1798.2,4.61]
[1746004267692,7.02686543,1798.3,1798.2,4.75531702]
[1746004268192,7.02686543,1798.3,1798.2,4.61]
[1746004268395,12.58767285,1798.3,1798.2,4.61]
[1746004272520,7.02686543,1798.3,1798.2,4.61]
[1746004273870,12.58767285,1798.3,1798.2,4.61]
[1746004275010,12.58767285,1798.3,1797.6,0.7718]
[1746004275314,0.7622,1798.0,1797.9,4.611]
[1746004275498,3.7622,1798.0,1797.9,4.611]
[1746004275693,4.43553834,1798.0,1797.9,4.611]
[1746004276420,4.95370167,1798.0,1797.9,4.611]
[1746004276602,5.26447832,1798.0,1797.9,4.611]
[1746004278330,3.0,1797.8,1797.6,4.612]
[1746004278497,0.67333834,1797.7,1797.6,4.612]
[1746004279725,1.08915156,1797.7,1797.6,4.612]
[1746004282327,1.85545156,1797.7,1797.5,18.36]
[1746004282504,1.85545156,1797.7,1797.4,4.612]
[1746004282706,1.85545156,1797.7,1797.5,4.612]
[1746004285805,0.67333834,1797.7,1797.6,0.8295]
[1746004286491,1.50398702,1797.7,1797.6,0.96781168]
[1746004294234,1.50515253,1797.7,1797.6,0.96781168]
[1746004300863,0.83181419,1797.7,1797.6,0.96781168]
[1746004314734,0.83181419,1797.7,1797.6,4.74931168]
[1746004316519,0.83181419,1797.7,1797.6,5.57211168]
[1746004321263,0.83181419,1797.7,1797.6,4.74931168]
[1746004322545,0.83181419,1797.7,1797.6,10.31228453]
[1746004323253,0.83181419,1797.7,1797.6,4.74931168]
[1746004325761,0.83181419,1797.7,1797.6,10.31228453]
[1746004326198,0.83181419,1797.7,1797.6,4.74931168]
[1746004334870,2.33125253,1797.7,1797.6,4.74931168]
[1746004338903,5.74528023,1797.7,1797.6,4.75723092]
[1746004339292,5.22495823,1797.7,1797.6,4.75723092]
[1746004339592,4.91346604,1797.7,1797.6,4.75723092]
[1746004339890,5.74705551,1797.7,1797.6,4.75723092]
[1746004341319,5.74685051,1797.7,1797.6,4.75723092]
[1746004349706,5.33282281,1797.7,1797.6,4.75723092]
[1746004352610,4.50672281,1797.7,1797.6,4.75723092]
[1746004353539,1.50672281,1797.7,1797.6,4.75723092]
[1746004363358,1.50707725,1797.7,1797.6,4.75723092]
[1746004364854,0.83373891,1797.7,1797.6,4.75723092]
[1746004369823,0.31261601,1797.7,1797.6,4.75723092]
[1746004370022,0.52083786,1797.7,1797.6,4.75723092]
[1746004370239,0.67333834,1798.0,1797.6,4.75723092]
[1746004371665,0.8332932,1797.9,1797.6,4.75723092]
[1746004372040,0.31248495,1797.9,1797.6,4.75723092]
[1746004372360,0.83329184,1797.8,1797.6,4.75723092]
[1746004372561,0.52080377,1797.7,1797.6,4.75723092]
[1746004372867,0.5208038,1797.7,1797.6,4.75723092]
[1746004373162,0.31248555,1797.7,1797.6,4.75723092]
[1746004373335,0.83329122,1797.7,1797.6,4.75723092]
[1746004373539,0.83329214,1797.7,1797.6,4.75723092]
[1746004373854,0.67333834,1798.0,1797.6,4.75723092]
[1746004374663,0.83318219,1797.9,1797.6,4.75723092]
[1746004375261,0.52073909,1797.8,1797.6,4.75723092]
[1746004375564,0.3124431,1797.7,1797.6,4.75723092]
[1746004375777,0.83318219,1797.7,1797.6,4.75723092]
[1746004378375,0.83318219,1797.7,1797.6,10.32020377]
[1746004378670,0.83318219,1797.7,1797.6,11.09780377]
[1746004378882,0.3124431,1797.7,1797.6,11.09780377]
[1746004379242,0.3124431,1797.9,1797.7,5.56264409]
[1746004379641,0.3124431,1797.9,1797.8,0.92260515]
[1746004379842,0.83312455,1797.9,1797.8,0.92260515]
[1746004380041,0.83312455,1797.9,1797.8,7.03495913]
[1746004380240,4.4020437,1798.4,1798.0,5.56164811]
[1746004380446,4.4020437,1798.4,1798.1,5.3918]
[1746004380978,0.52064742,1798.3,1798.1,5.3918]
[1746004381186,0.83304112,1798.3,1798.1,4.609]
[1746004381348,0.52064742,1798.2,1798.1,4.609]
[1746004381694,0.83304112,1798.2,1798.1,4.609]
[1746004382147,1.64274112,1798.2,1798.1,4.609]
[1746004383187,1.64274112,1798.2,1798.1,4.61660986]
[1746004383807,4.02949809,1798.2,1798.1,0.00760986]
[1746004383992,3.0,1798.1,1798.0,4.609]
[1746004384191,3.7972,1798.1,1798.0,4.609]
[1746004384365,4.31784742,1798.1,1798.0,4.609]
[1746004384994,4.63024112,1798.1,1798.0,4.609]
[1746004386888,4.63024112,1798.1,1798.0,4.61667172]
[1746004388509,4.1095937,1798.1,1798.0,4.61667172]
[1746004388814,4.47053834,1798.1,1798.0,4.61667172]
[1746004389211,5.30316025,1798.1,1798.0,4.61667172]
[1746004391412,5.30316025,1798.1,1798.0,4.7475041]
[1746004396009,5.72104905,1798.1,1798.0,4.7475041]
[1746004396312,5.40881571,1798.1,1798.0,4.7475041]
[1746004396490,4.88842714,1798.1,1798.0,4.7475041]
[1746004396908,5.20064934,1798.1,1798.0,4.7475041]
[1746004397081,5.72101717,1798.1,1798.0,4.7475041]
[1746004402819,4.88842714,1798.1,1798.0,4.7475041]
[1746004403123,5.721221,1798.1,1798.0,4.7475041]
[1746004419848,6.94737414,1798.1,1798.0,4.7475041]
[1746004423049,6.94737414,1798.1,1798.0,0.1385041]
[1746004424929,13.73495322,1798.1,1798.0,0.1385041]
[1746004425125,12.50880008,1798.1,1798.0,0.13083238]
[1746004425322,9.36193526,1798.0,1797.9,4.606]
[1746004425525,11.85145752,1798.0,1797.9,4.606]
[1746004425736,12.0942206,1798.0,1797.9,4.606]
[1746004427325,13.32037374,1798.0,1797.9,4.606]
[1746004427527,12.58529741,1798.0,1797.9,4.606]
[1746004429764,7.02356215,1798.0,1797.9,4.606]
[1746004430442,12.58529741,1798.0,1797.9,4.606]
[1746004430622,7.02356215,1798.0,1797.9,4.606]
[1746004430922,12.58529741,1798.0,1797.9,4.606]
[1746004432161,16.31400277,1798.0,1797.9,4.606]
[1746004436077,9.03503756,1798.0,1797.9,4.606]
[1746004436360,8.23483756,1798.0,1797.9,4.75092926]
[1746004436728,8.23483756,1798.0,1797.9,4.606]
[1746004437330,8.23483756,1798.0,1797.9,4.61373359]
[1746004437559,8.23483756,1798.0,1797.9,5.52572926]
[1746004439282,8.23483756,1798.0,1797.9,4.75092926]
[1746004439643,6.22336215,1798.0,1797.9,4.75092926]
[1746004447369,6.22336215,1798.0,1797.9,4.606]
[1746004447579,11.78509741,1798.0,1797.9,4.75011577]
[1746004448104,6.22336215,1798.0,1797.9,4.606]
[1746004455009,11.78509741,1798.0,1797.9,4.606]
[1746004457409,6.22336215,1798.0,1797.7,4.604]
[1746004457719,0.31229774,1797.9,1797.8,0.14468516]
[1746004457895,0.83279386,1797.9,1797.8,0.14468516]
[1746004459217,1.5061322,1797.9,1797.8,0.14468516]
[1746004460118,1.57566715,1797.9,1797.8,0.14468516]
[1746004460319,1.5061322,1797.9,1797.8,0.14468516]
[1746004460721,2.2867322,1797.9,1797.8,0.14468516]
[1746004466495,1.5061322,1797.9,1797.8,0.14468516]
[1746004468525,1.5061322,1797.9,1797.7,4.604]
[1746004468690,1.5061322,1797.9,1797.7,5.4101]
[1746004468892,0.52049612,1797.8,1797.7,5.4101]
[1746004469603,0.83279386,1797.8,1797.7,5.4101]
[1746004470921,1.5061322,1797.8,1797.7,5.4101]
[1746004472033,1.5061322,1797.8,1797.7,5.41795735]
[1746004472196,1.5061322,1797.8,1797.7,4.61185735]
[1746004472789,1.5061322,1797.8,1797.7,0.00785735]
[1746004473021,1.5061322,1797.8,1797.6,4.604]
[1746004473203,1.5061322,1797.8,1797.7,0.00785735]
[1746004474121,4.5061322,1797.8,1797.7,0.00785735]
[1746004475601,4.50625896,1797.8,1797.7,0.00785735]
[1746004481513,4.50625896,1797.8,1797.7,0.14435981]
[1746004483128,4.50625896,1797.8,1797.7,0.97465981]
[1746004483129,1.50625896,1797.8,1797.7,0.97465981]
[1746004498271,1.50625896,1797.8,1797.7,0.14435981]
[1746004499353,1.50625896,1797.8,1797.7,0.91985981]
[1746004506286,1.50625896,1797.8,1797.7,0.14435981]
[1746004514297,1.50625896,1797.8,1797.7,4.74235981]
[1746004521711,2.73254708,1797.8,1797.7,4.74235981]
[1746004526951,1.50625896,1797.8,1797.7,4.74235981]
[1746004529624,1.50625896,1797.8,1797.7,5.51225981]
[1746004529821,0.83292062,1797.8,1797.7,5.51225981]
[1746004539983,0.83292062,1797.8,1797.7,6.73854793]
[1746004540202,0.52049612,1797.8,1797.7,6.73854793]
[1746004541776,0.52049612,1797.8,1797.7,5.51225981]
[1746004541983,0.83282415,1797.8,1797.7,6.06225981]
[1746004542183,0.83282415,1797.8,1797.7,13.34095049]
[1746004542381,0.31232803,1797.8,1797.7,13.34095049]
[1746004542558,0.67333834,1798.0,1797.8,0.7651]
[1746004542759,0.67333834,1798.0,1797.9,0.13967819]
[1746004542962,0.67333834,1798.0,1797.9,0.92067819]
[1746004543285,1.19367895,1798.0,1797.9,0.92067819]
[1746004543461,1.19367895,1798.0,1797.9,0.13967819]
[1746004543861,1.50587002,1798.0,1797.9,0.13967819]
[1746004544791,2.27717002,1798.0,1797.9,0.13967819]
[1746004545928,1.44463834,1798.0,1797.9,0.13967819]
[1746004546384,6.16066562,1798.0,1797.9,0.13967819]
[1746004546723,6.16066562,1798.0,1797.7,4.598]
[1746004546926,0.7766,1797.9,1797.7,4.598]
[1746004547122,0.7766,1797.9,1797.8,0.00779547]
[1746004547427,17.72230644,1797.9,1797.8,0.00779547]
[1746004547585,18.03444358,1797.9,1797.8,0.00779547]
[1746004552138,10.7563717,1797.9,1797.8,0.00779547]
[1746004552505,6.9823717,1797.9,1797.8,0.00779547]
[1746004554152,6.9823717,1797.9,1797.8,0.76699547]
[1746004555253,6.9823717,1797.9,1797.8,0.00779547]
[1746004556421,6.9823717,1797.9,1797.8,0.14195536]
[1746004557245,6.67023456,1797.9,1797.8,0.14195536]
[1746004557558,6.98211151,1797.9,1797.8,0.14195536]
[1746004560434,6.98211151,1797.9,1797.8,6.53430934]
[1746004560949,6.67023456,1797.9,1797.8,6.53430934]
[1746004561147,6.67023456,1797.9,1797.8,0.97195536]
[1746004562424,6.67023456,1797.9,1797.8,6.53430934]
[1746004562613,6.15,1797.9,1797.8,6.53430934]
[1746004563548,6.15,1797.9,1797.8,0.97195536]
[1746004564461,6.15,1797.9,1797.8,19.33795536]
[1746004564861,9.87870536,1798.3,1797.8,19.33795536]
[1746004565369,0.83169188,1798.2,1797.8,19.33795536]
[1746004565657,0.83169188,1798.2,1797.8,24.90027887]
[1746004565832,0.51980438,1798.1,1797.8,24.90027887]
[1746004566763,6.15,1798.3,1797.8,24.90027887]
[1746004566764,6.15,1798.3,1797.8,19.33795536]
[1746004567054,0.51966286,1798.2,1797.8,19.33795536]
[1746004567416,0.31176134,1798.1,1797.9,0.8215]
[1746004567617,0.31176134,1798.1,1798.0,0.14163002]
[1746004567850,0.8314242,1798.1,1798.0,0.14163002]
[1746004568377,0.51966286,1798.1,1798.0,0.14163002]
[1746004569874,0.51966286,1798.1,1798.0,0.92443002]
[1746004570150,0.51966286,1798.1,1798.0,6.48616528]
[1746004570355,6.15,1798.3,1798.0,0.92443002]
[1746004570555,6.15,1798.3,1798.1,4.595]
[1746004571367,6.15,1798.3,1798.2,0.007548]
[1746004571528,6.15,1798.3,1798.2,0.13805226]
[1746004571729,6.66933876,1798.3,1798.1,4.595]
[1746004572151,6.15,1798.3,1798.1,4.595]
[1746004573735,6.15,1798.5,1798.1,4.595]
[1746004574356,0.51909194,1798.4,1798.1,4.595]
[1746004574892,0.51909194,1798.4,1798.2,0.007548]
[1746004575034,6.15,1798.5,1798.2,0.1357329]
[1746004575234,0.31138679,1798.4,1798.2,0.1357329]
[1746004576285,6.15,1798.5,1798.2,0.1357329]
[1746004577078,0.51887542,1798.4,1798.2,0.1357329]
[1746004577739,6.15,1798.5,1798.2,0.1357329]
[1746004577971,6.15,1798.5,1798.2,0.9030329]
[1746004580463,6.15,1798.5,1798.3,4.592]
[1746004580957,6.15,1798.5,1798.4,0.12912457]
[1746004581495,6.66846574,1798.5,1798.4,0.12912457]
[1746004581661,6.97954025,1798.5,1798.4,0.12912457]
[1746004584589,6.66846574,1798.5,1798.4,0.12912457]
[1746004586195,6.15,1798.5,1798.4,0.12912457]